bitfinex/quotes_BTCUSD_20220109
["timestamp","ask_amount","ask_price","bid_price","bid_amount"]
[1641690824737,0.119508,41850.0,41847.0,0.06017154]
[1641690824991,0.152867,41849.0,41847.0,0.00040019]
[1641690825289,0.119508,41850.0,41847.0,0.00040019]
[1641690825489,0.059754,41849.0,41847.0,0.00040019]
[1641690825688,0.059754,41849.0,41847.0,0.06015419]
[1641690825891,0.059754,41849.0,41847.0,0.06055441]
[1641690826093,0.059754,41849.0,41847.0,0.06015422]
[1641690826491,0.059754,41849.0,41847.0,0.11990422]
[1641690826689,0.062754,41849.0,41847.0,0.13590422]
[1641690827492,0.003,41849.0,41847.0,0.13590422]
[1641690827890,0.003,41849.0,41848.0,0.38452]
[1641690828093,0.239,41854.0,41848.0,0.504005]
[1641690828391,0.239,41854.0,41849.0,0.39962666]
[1641690828592,0.53592141,41854.0,41849.0,0.39962666]
[1641690829234,0.57202763,41854.0,41849.0,0.39962666]
[1641690829637,0.059745,41852.0,41851.0,0.059744]
[1641690829835,0.05893282,41852.0,41851.0,0.059744]
[1641690830237,0.05893282,41852.0,41850.0,0.059743]
[1641690830438,0.05893282,41852.0,41847.0,0.00041947]
[1641690830641,3.72198996,41852.0,41847.0,0.00041947]
[1641690830837,0.602867,41851.0,41850.0,0.02]
[1641690831438,0.86722253,41851.0,41850.0,0.02]
[1641690832687,0.87822253,41851.0,41850.0,0.02]
[1641690834089,0.87822253,41851.0,41847.0,0.06017361]
[1641690834289,0.86722253,41851.0,41847.0,0.06017361]
[1641690834593,0.059757,41850.0,41847.0,0.00041861]
[1641690834789,0.152867,41849.0,41847.0,0.00041861]
[1641690835592,0.059755,41848.0,41847.0,0.00041861]
[1641690835791,0.11951,41849.0,41847.0,0.12034425]
[1641690835991,0.11951,41849.0,41847.0,0.11992564]
[1641690836232,0.152867,41848.0,41847.0,0.11992564]
[1641690836432,0.152867,41848.0,41847.0,0.06017364]
[1641690836630,0.212616,41848.0,41847.0,0.00041864]
[1641690836832,0.214616,41848.0,41847.0,0.00041864]
[1641690837030,0.214616,41848.0,41847.0,0.00041868]
[1641690838032,0.212616,41848.0,41847.0,0.00083736]
[1641690838232,0.152867,41848.0,41847.0,0.00041868]
[1641690838732,0.157867,41848.0,41847.0,0.00041868]
[1641690840082,0.152867,41848.0,41847.0,0.00041868]
[1641690840784,0.411867,41848.0,41847.0,0.00041868]
[1641690841585,0.411867,41848.0,41844.0,0.24122387]
[1641690841586,0.8,41847.0,41844.0,0.24122387]
[1641690841787,0.80408823,41845.0,41844.0,0.24122387]
[1641690841983,0.15408823,41845.0,41844.0,0.24122387]
[1641690842386,0.4644508,41845.0,41844.0,0.24122387]
[1641690842684,0.8734508,41845.0,41844.0,0.24122387]
[1641690843285,0.16308823,41845.0,41844.0,0.24122387]
[1641690843737,0.611867,41845.0,41844.0,0.24122387]
[1641690843939,0.602867,41845.0,41844.0,0.24122387]
[1641690844239,0.87226588,41845.0,41844.0,0.24122387]
[1641690844440,1.17208872,41845.0,41844.0,0.24122387]
[1641690844640,0.00069,41841.0,41832.0,0.01]
[1641690844844,0.02321587,41834.0,41832.0,0.01]
[1641690845043,0.11646587,41834.0,41832.0,0.01]
[1641690845239,0.502867,41833.0,41832.0,0.01]
[1641690845439,0.152867,41833.0,41832.0,0.01]
[1641690845642,0.48278353,41833.0,41832.0,0.01]
[1641690846041,0.54256153,41833.0,41832.0,0.01]
[1641690846840,0.55156153,41833.0,41832.0,0.01042528]
[1641690847786,0.221645,41833.0,41832.0,0.01042528]
[1641690847983,0.221645,41833.0,41832.0,0.01042529]
[1641690848786,0.230645,41833.0,41832.0,0.01042529]
[1641690849187,0.50831354,41833.0,41832.0,0.01042529]
[1641690849385,0.73133921,41833.0,41832.0,0.01042529]
[1641690849686,0.73133921,41833.0,41831.0,0.004]
[1641690849687,0.6,41832.0,41831.0,0.004]
[1641690849889,1.04594922,41832.0,41831.0,0.004]
[1641690850388,0.059787,41826.0,41819.0,0.0012328]
[1641690850588,0.3610415,41826.0,41819.0,0.05979022]
[1641690850789,0.28603754,41824.0,41819.0,0.05979022]
[1641690851089,0.28603754,41824.0,41817.0,0.000696]
[1641690851090,0.147829,41823.0,41817.0,0.000696]
[1641690851348,0.45,41821.0,41817.0,0.000696]
[1641690851546,0.059796,41819.0,41817.0,0.000696]
[1641690851749,0.23045468,41819.0,41817.0,0.000696]
[1641690851946,0.142521,41820.0,41817.0,0.000696]
[1641690852148,0.141711,41820.0,41817.0,0.000696]
[1641690852651,0.859796,41818.0,41817.0,0.00111103]
[1641690852848,1.055425,41818.0,41817.0,0.00111103]
[1641690853047,1.05669023,41818.0,41817.0,0.00111103]
[1641690853646,1.05669023,41818.0,41817.0,0.00111104]
[1641690853847,0.44242561,41818.0,41817.0,0.00111104]
[1641690854048,0.44368596,41818.0,41817.0,0.00111104]
[1641690854249,0.8,41817.0,41811.0,0.004]
[1641690854449,0.8,41812.0,41801.0,0.004]
[1641690854648,0.43799222,41811.0,41801.0,0.004]
[1641690854850,0.67828742,41811.0,41801.0,0.004]
[1641690855088,0.62828742,41811.0,41801.0,0.004]
[1641690855289,0.23917007,41810.0,41801.0,0.004]
[1641690855487,0.0478,41809.0,41801.0,0.004]
[1641690855788,0.24453554,41802.0,41801.0,0.004]
[1641690855989,0.274163,41808.0,41801.0,0.004]
[1641690856191,0.321963,41808.0,41801.0,0.004]
[1641690856890,0.0558,41808.0,41804.0,0.00041245]
[1641690857095,0.29525907,41805.0,41804.0,0.00041245]
[1641690857292,0.50290507,41805.0,41804.0,0.00041245]
[1641690857894,0.50290507,41805.0,41804.0,0.0008249]
[1641690858092,0.50290507,41805.0,41804.0,0.00041245]
[1641690858294,0.56419233,41805.0,41804.0,0.00041245]
[1641690858495,0.179485,41807.0,41804.0,0.00041245]
[1641690858763,0.611,41805.0,41804.0,0.00041245]
[1641690858965,0.8,41804.0,41792.0,0.000696]
[1641690859162,0.059834,41798.0,41792.0,0.000696]
[1641690859362,0.29790909,41798.0,41792.0,0.000696]
[1641690859563,0.45,41797.0,41789.0,0.27915753]
[1641690859761,0.29415181,41798.0,41786.0,0.00122989]
[1641690859762,3.46476481,41788.0,41786.0,0.00122989]
[1641690859961,3.46476481,41788.0,41786.0,0.24055377]
[1641690860565,3.46476481,41788.0,41781.0,0.063839]
[1641690860762,3.46476481,41788.0,41782.0,0.32100994]
[1641690860963,3.46476481,41788.0,41784.0,0.05983834]
[1641690861165,3.46476481,41788.0,41786.0,0.00040988]
[1641690861565,3.70476481,41788.0,41786.0,0.00040988]
[1641690862264,3.70476481,41788.0,41786.0,0.00081976]
[1641690862487,3.70476481,41788.0,41786.0,0.00040988]
[1641690862687,3.70476481,41788.0,41786.0,0.06024788]
[1641690862887,3.71276481,41788.0,41786.0,0.06024788]
[1641690863988,3.70476481,41788.0,41786.0,0.12008188]
[1641690864187,3.70476481,41788.0,41786.0,0.06024788]
[1641690864587,3.70476481,41788.0,41786.0,0.06024599]
[1641690864790,3.71276481,41788.0,41786.0,0.06024599]
[1641690866232,3.70476481,41788.0,41786.0,0.06024599]
[1641690866635,0.24,41788.0,41786.0,0.1799036]
[1641690866834,0.25,41788.0,41787.0,0.38499]
[1641690868036,0.24,41788.0,41786.0,0.1799036]
[1641690868238,0.299836,41788.0,41786.0,0.00040799]
[1641690868635,0.24,41788.0,41786.0,0.00040799]
[1641690868836,0.25,41788.0,41786.0,0.00040799]
[1641690869036,0.25,41788.0,41786.0,0.06024099]
[1641690869236,0.25,41788.0,41787.0,0.00040798]
[1641690870182,0.25,41788.0,41786.0,0.00040807]
[1641690870785,0.254,41788.0,41786.0,0.00040807]
[1641690871986,0.254,41788.0,41786.0,0.00081614]
[1641690872183,2.71639197,41787.0,41786.0,0.00040807]
[1641690872787,2.72039197,41787.0,41786.0,0.00040807]
[1641690873187,2.72039197,41787.0,41786.0,0.00040808]
[1641690873188,2.72616718,41787.0,41786.0,0.00040808]
[1641690873389,3.22616718,41787.0,41786.0,0.00040808]
[1641690874045,3.22216718,41787.0,41786.0,0.00040808]
[1641690874646,3.50163674,41787.0,41786.0,0.00040808]
[1641690874951,3.50163674,41787.0,41781.0,0.004]
[1641690874952,0.8,41785.0,41781.0,0.004]
[1641690875149,0.059861,41778.0,41771.0,0.004]
[1641690875746,0.34964844,41777.0,41771.0,0.004]
[1641690875948,0.3166235,41772.0,41771.0,0.004]
[1641690876149,0.059864,41774.0,41771.0,0.004]
[1641690876551,0.05,41779.0,41771.0,0.004]
[1641690876949,0.2356199,41782.0,41771.0,0.004]
[1641690876950,0.004,41774.0,41771.0,0.004]
[1641690877147,0.004,41774.0,41773.0,0.28101782]
[1641690877350,0.05986,41773.0,41771.0,0.004]
[1641690877585,0.2737134,41773.0,41771.0,0.004]
[1641690877784,0.05986,41773.0,41771.0,0.004]
[1641690878182,0.05986,41773.0,41772.0,0.24274161]
[1641690878586,0.004,41774.0,41772.0,0.24274161]
[1641690878785,0.01,41773.0,41772.0,0.24274161]
[1641690878986,0.01,41773.0,41772.0,0.62773161]
[1641690879186,0.01,41773.0,41772.0,0.82773161]
[1641690879385,0.06557019,41784.0,41774.0,0.2]
[1641690879686,0.06557019,41784.0,41781.0,0.0598399]
[1641690880086,0.12541219,41784.0,41772.0,0.04821424]
[1641690880287,0.12541219,41784.0,41772.0,0.00167615]
[1641690880689,0.12541219,41784.0,41775.0,0.119693]
[1641690880690,0.12041219,41784.0,41775.0,0.119693]
[1641690880887,0.12441219,41784.0,41777.0,0.00041413]
[1641690881089,0.29682143,41781.0,41777.0,0.00041413]
[1641690881336,0.059853,41779.0,41777.0,0.00041413]
[1641690881937,0.059853,41779.0,41778.0,0.00040519]
[1641690882338,0.509853,41779.0,41778.0,0.00040519]
[1641690882935,0.528853,41779.0,41778.0,0.00040519]
[1641690883139,0.528853,41779.0,41778.0,0.0004052]
[1641690883738,0.078853,41779.0,41778.0,0.0004052]
[1641690883937,0.32959937,41779.0,41778.0,0.0004052]
[1641690884135,0.76059937,41779.0,41778.0,0.0008104]
[1641690884337,0.76059937,41779.0,41778.0,0.0004052]
[1641690884736,0.16562821,41779.0,41778.0,0.0004052]
[1641690884985,0.18462821,41779.0,41778.0,0.0004052]
[1641690885182,0.08462821,41779.0,41778.0,0.0004052]
[1641690885381,0.078853,41779.0,41778.0,0.0004052]
[1641690886183,0.059853,41779.0,41778.0,0.0004052]
[1641690886384,0.059853,41779.0,41778.0,0.00040539]
[1641690886882,0.095853,41779.0,41778.0,0.00040539]
[1641690887084,0.40141028,41779.0,41778.0,0.00040539]
[1641690887284,1.21345131,41779.0,41778.0,0.00040539]
[1641690887482,1.31345131,41779.0,41778.0,0.00081078]
[1641690887685,1.31345131,41779.0,41778.0,0.00040539]
[1641690888083,1.27745131,41779.0,41778.0,0.00040539]
[1641690888937,1.28945131,41779.0,41778.0,0.00040539]
[1641690890134,1.27745131,41779.0,41778.0,0.00040539]
[1641690890334,1.27745131,41779.0,41778.0,0.00081078]
[1641690890534,0.31578305,41772.0,41771.0,0.004]
[1641690890735,0.37565405,41772.0,41771.0,0.004]
[1641690891536,0.37565405,41772.0,41765.0,0.05956444]
[1641690891936,0.47565405,41772.0,41765.0,0.11943244]
[1641690892135,0.47565405,41772.0,41765.0,0.059868]
[1641690892336,0.47565405,41772.0,41766.0,0.059867]
[1641690892584,0.47565405,41772.0,41765.0,0.05986826]
[1641690892785,0.5,41771.0,41765.0,0.05986826]
[1641690892989,0.5,41771.0,41766.0,0.02]
[1641690893185,0.059869,41769.0,41766.0,0.079867]
[1641690893388,0.059869,41769.0,41767.0,0.05986626]
[1641690894787,0.059869,41769.0,41768.0,0.32787911]
[1641690894987,0.069869,41769.0,41768.0,0.32787911]
[1641690895189,0.01,41769.0,41768.0,0.71286911]
[1641690895787,0.01,41769.0,41768.0,0.71327753]
[1641690896237,0.059857,41772.0,41768.0,0.70827753]
[1641690896437,0.059857,41772.0,41770.0,0.05985772]
[1641690896839,0.065857,41772.0,41770.0,0.07285772]
[1641690897440,0.065857,41772.0,41770.0,0.13271972]
[1641690898041,0.065857,41772.0,41770.0,0.13312809]
[1641690898638,0.065857,41772.0,41770.0,0.12012809]
[1641690898639,0.059857,41772.0,41770.0,0.12012809]
[1641690898837,0.065857,41772.0,41770.0,0.13312809]
[1641690899040,0.006,41772.0,41770.0,0.18312809]
[1641690899240,0.00042783,41783.0,41772.0,1.0]
[1641690899442,0.00042783,41783.0,41778.0,0.0598433]
[1641690899637,0.00042783,41783.0,41780.0,0.00125795]
[1641690900294,0.06069775,41783.0,41780.0,0.00125795]
[1641690900492,0.06026992,41783.0,41780.0,0.00125795]
[1641690900694,0.06026992,41783.0,41780.0,0.119691]
[1641690901293,0.30026992,41783.0,41780.0,0.119691]
[1641690901494,0.30026993,41783.0,41780.0,0.119691]
[1641690901697,0.30026993,41783.0,41776.0,0.0478]
[1641690901894,0.36794728,41782.0,41773.0,0.00039962]
[1641690902097,0.12543354,41779.0,41773.0,0.00039962]
[1641690902694,0.32224858,41774.0,41773.0,0.00079925]
[1641690902894,0.32224858,41774.0,41773.0,0.00039963]
[1641690903096,0.179583,41781.0,41773.0,0.00039963]
[1641690903300,0.179583,41781.0,41775.0,0.059852]
[1641690904044,0.179583,41781.0,41777.0,0.2542985]
[1641690904243,0.059851,41779.0,41777.0,0.37399681]
[1641690904541,0.059851,41779.0,41778.0,0.059847]
[1641690905545,0.059851,41779.0,41777.0,0.06185]
[1641690905746,0.059851,41779.0,41777.0,0.002]
[1641690906148,0.059851,41779.0,41773.0,0.12010482]
[1641690906347,0.059851,41779.0,41773.0,0.00039982]
[1641690906545,0.29159332,41776.0,41773.0,0.00039982]
[1641690906748,0.05986,41775.0,41773.0,0.00039982]
[1641690906945,0.1,41779.0,41773.0,0.00039982]
[1641690907146,0.06555401,41777.0,41773.0,0.00039984]
[1641690907786,0.24507847,41776.0,41773.0,0.00039984]
[1641690908286,0.24507847,41776.0,41773.0,0.00039985]
[1641690909089,0.36479847,41776.0,41773.0,0.00039985]
[1641690909289,0.00315678,41774.0,41773.0,0.00039986]
[1641690909490,0.00631356,41774.0,41773.0,0.00039986]
[1641690909690,0.06618156,41774.0,41773.0,0.00039986]
[1641690910289,0.06618156,41774.0,41773.0,0.00079973]
[1641690910490,0.06618156,41774.0,41773.0,0.00039987]
[1641690910990,0.31618156,41774.0,41773.0,0.00039987]
[1641690911244,0.55919449,41774.0,41773.0,0.00039987]
[1641690911447,0.65919449,41774.0,41773.0,0.00039987]
[1641690911845,0.89919449,41774.0,41773.0,0.00039987]
[1641690912447,0.64919449,41774.0,41773.0,0.00039987]
[1641690913048,0.82214449,41774.0,41773.0,0.00039987]
[1641690913848,1.17214449,41774.0,41773.0,0.00039987]
[1641690914047,1.17214449,41774.0,41773.0,0.00079974]
[1641690914248,1.17214449,41774.0,41773.0,0.00039987]
[1641690914648,1.17214449,41774.0,41773.0,0.00079974]
[1641690915093,1.17214449,41774.0,41773.0,0.00039987]
[1641690915094,1.1889197,41774.0,41773.0,0.00039987]
[1641690915293,0.8,41772.0,41761.0,0.004]
[1641690915493,0.059882,41767.0,41761.0,0.004]
[1641690915694,0.17607291,41766.0,41761.0,0.004]
[1641690915891,0.00315678,41764.0,41761.0,0.004]
[1641690916093,0.00631356,41764.0,41761.0,0.004]
[1641690916293,0.26376071,41762.0,41761.0,0.004]
[1641690916492,0.39514471,41762.0,41761.0,0.004]
[1641690916892,0.40514471,41762.0,41761.0,0.011]
[1641690917191,0.50514471,41762.0,41761.0,0.011]
[1641690918193,0.73954394,41762.0,41761.0,0.004]
[1641690918493,0.5,41761.0,41752.0,0.23953069]
[1641690918748,0.059895,41754.0,41752.0,0.23953069]
[1641690919747,0.059895,41754.0,41751.0,0.004]
[1641690920151,0.059895,41754.0,41752.0,0.00040584]
[1641690920949,0.063895,41754.0,41752.0,0.02940584]
[1641690921149,0.00315678,41753.0,41752.0,0.02940584]
[1641690921349,0.00631356,41753.0,41752.0,0.02940584]
[1641690922352,0.00631356,41753.0,41752.0,0.02940585]
[1641690922793,0.35631356,41753.0,41752.0,0.02940585]
[1641690922993,0.43733356,41753.0,41752.0,0.00040585]
[1641690923192,0.77566888,41753.0,41752.0,0.00040585]
[1641690923392,0.89126798,41753.0,41752.0,0.00040585]
[1641690923594,1.02098698,41753.0,41752.0,0.00040585]
[1641690923994,1.02098698,41753.0,41751.0,0.004]
[1641690923995,1.07098698,41753.0,41751.0,0.004]
[1641690924191,0.75,41752.0,41751.0,0.004]
[1641690924396,0.754,41751.0,41742.0,0.000696]
[1641690924593,0.904,41751.0,41742.0,0.000696]
[1641690924795,0.179738,41748.0,41742.0,0.000696]
[1641690924994,0.27244882,41747.0,41742.0,0.000696]
[1641690925193,0.33236292,41747.0,41742.0,0.000696]
[1641690925395,0.3321011,41745.0,41742.0,0.000696]
[1641690925599,0.3321011,41745.0,41735.0,2.6e-05]
[1641690925600,0.7,41744.0,41735.0,2.6e-05]
[1641690925793,0.119842,41741.0,41735.0,2.6e-05]
[1641690926242,0.169842,41741.0,41735.0,2.6e-05]
[1641690926439,0.00315678,41738.0,41735.0,2.6e-05]
[1641690926640,0.00631356,41738.0,41735.0,2.6e-05]
[1641690926839,0.06623556,41738.0,41735.0,2.6e-05]
[1641690927039,0.07423556,41738.0,41735.0,2.6e-05]
[1641690928341,0.06623556,41738.0,41735.0,2.6e-05]
[1641690928541,0.11623556,41738.0,41735.0,2.6e-05]
[1641690928843,0.119844,41737.0,41736.0,0.00040324]
[1641690929443,0.119844,41737.0,41736.0,0.26713735]
[1641690929841,0.119844,41737.0,41736.0,0.00040324]
[1641690930997,0.135844,41737.0,41736.0,0.00040324]
[1641690931198,0.135844,41737.0,41733.0,0.30166743]
[1641690931404,0.135844,41737.0,41732.0,0.01011]
[1641690931597,0.375844,41737.0,41732.0,0.01011]
[1641690931798,0.00315678,41734.0,41732.0,0.01011]
[1641690931996,0.00631356,41734.0,41732.0,0.01011]
[1641690932197,0.00631356,41734.0,41732.0,0.35205909]
[1641690932397,0.00631356,41734.0,41733.0,0.444906]
[1641690932998,0.07322856,41734.0,41733.0,0.457906]
[1641690933400,0.07322856,41734.0,41733.0,0.452906]
[1641690933941,0.07322856,41734.0,41733.0,0.067916]
[1641690934147,0.07322856,41734.0,41732.0,0.35205909]
[1641690934345,0.00631356,41734.0,41733.0,0.63499]
[1641690934541,0.00631356,41734.0,41733.0,0.38499]
[1641690934941,0.01331356,41734.0,41733.0,0.39899]
[1641690935142,0.01331356,41734.0,41733.0,0.62028134]
[1641690935344,0.01331356,41734.0,41733.0,1.0361715]
[1641690936146,0.01331356,41734.0,41733.0,0.39899]
[1641690936345,0.00631356,41734.0,41733.0,0.38499]
[1641690936945,0.01931356,41734.0,41733.0,0.39299]
[1641690938201,0.00631356,41734.0,41732.0,0.01011]
[1641690938505,0.34,41737.0,41732.0,0.01011]
[1641690938702,0.00315678,41734.0,41732.0,0.01011]
[1641690938901,0.00631356,41734.0,41732.0,0.01011]
[1641690939100,0.00631356,41734.0,41732.0,0.01511]
[1641690939301,0.32352594,41733.0,41732.0,0.01511]
[1641690939502,0.32352594,41733.0,41732.0,1e-05]
[1641690939503,1.25773594,41733.0,41732.0,1e-05]
[1641690939903,0.144133,41733.0,41732.0,1e-05]
[1641690940304,0.144133,41733.0,41731.0,0.0046122]
[1641690940502,0.059923,41733.0,41728.0,0.0001622]
[1641690940901,0.059923,41733.0,41730.0,0.33198442]
[1641690941105,0.082923,41733.0,41730.0,0.33198442]
[1641690941543,0.082923,41733.0,41730.0,0.39190542]
[1641690941746,0.082923,41733.0,41730.0,0.33198442]
[1641690942342,0.059923,41733.0,41730.0,0.33198442]
[1641690942942,0.115923,41733.0,41730.0,0.33198442]
[1641690943943,0.00315678,41732.0,41730.0,0.33198442]
[1641690944144,0.00631356,41732.0,41730.0,0.33198442]
[1641690944346,0.059922,41731.0,41730.0,0.33198442]
[1641690944992,0.098922,41731.0,41730.0,0.33198442]
[1641690946195,0.073922,41731.0,41730.0,0.33198442]
[1641690946399,0.034922,41731.0,41730.0,0.33198442]
[1641690947196,0.067922,41731.0,41730.0,0.33198442]
[1641690947394,0.067922,41731.0,41730.0,0.39289442]
[1641690947795,0.067922,41731.0,41730.0,0.06091]
[1641690948395,0.034922,41731.0,41730.0,0.06091]
[1641690949051,0.034922,41731.0,41730.0,0.06191]
[1641690949052,0.076922,41731.0,41730.0,0.06191]
[1641690949251,0.08007878,41731.0,41730.0,0.06191]
[1641690949448,0.08323556,41731.0,41730.0,0.06191]
[1641690950250,0.04123556,41731.0,41730.0,0.06091]
[1641690950449,0.92278071,41731.0,41730.0,0.06091]
[1641690950648,0.27278071,41731.0,41730.0,0.06091]
[1641690950850,0.27359021,41731.0,41730.0,0.06091]
[1641690951050,0.06123556,41731.0,41730.0,0.06291]
[1641690951953,0.03623556,41731.0,41730.0,0.06291]
[1641690952350,0.03623556,41731.0,41730.0,0.06091]
[1641690952351,0.01623556,41731.0,41730.0,0.06091]
[1641690952992,0.03623556,41731.0,41730.0,0.38500707]
[1641690953994,0.02631356,41731.0,41730.0,0.38500707]
[1641690954196,0.02631356,41731.0,41730.0,0.76999707]
[1641690954393,0.00631356,41731.0,41730.0,0.76899707]
[1641690954995,0.00631356,41731.0,41730.0,0.78899707]
[1641690955493,0.00631356,41731.0,41730.0,0.84891672]
[1641690956350,0.00631356,41731.0,41730.0,0.82891672]
[1641690957150,0.00631356,41731.0,41730.0,0.88791672]
[1641690957750,0.22174559,41737.0,41735.0,0.06091]
[1641690957952,0.22174559,41737.0,41735.0,0.12081545]
[1641690957953,0.00043203,41736.0,41735.0,0.12081545]
[1641690958149,0.00043203,41736.0,41735.0,0.50580545]
[1641690958552,0.00043203,41736.0,41735.0,0.74271741]
[1641690958850,0.00043203,41736.0,41735.0,1.1635515]
[1641690959051,0.00043203,41736.0,41735.0,1.1725515]
[1641690961096,0.22174559,41737.0,41735.0,1.2225515]
[1641690961295,0.22174559,41737.0,41736.0,0.6459]
[1641690961497,0.22174559,41737.0,41736.0,0.8459]
[1641690961698,0.22174559,41737.0,41736.0,0.7459]
[1641690961899,0.22174559,41737.0,41736.0,0.89104604]
[1641690963098,0.22174559,41737.0,41736.0,0.92304604]
[1641690963497,0.19674559,41737.0,41736.0,0.72697621]
[1641690964346,0.19674559,41737.0,41736.0,0.69497621]
[1641690965247,0.19674559,41737.0,41736.0,0.72197621]
[1641690966247,0.19674559,41737.0,41736.0,0.69497621]
[1641690967150,0.19674559,41737.0,41736.0,0.72297621]
[1641690968304,0.19674559,41737.0,41736.0,0.69497621]
[1641690969103,0.19674559,41737.0,41736.0,0.72197621]
[1641690969806,0.17174559,41737.0,41736.0,0.72197621]
[1641690970404,0.17174559,41737.0,41736.0,0.69497621]
[1641690971005,0.17174559,41737.0,41736.0,0.52297621]
[1641690971974,0.17174559,41737.0,41736.0,0.08891]
[1641690972175,0.97174559,41737.0,41736.0,0.08891]
[1641690972573,1.07174559,41737.0,41736.0,0.08891]
[1641690972774,1.12174559,41737.0,41736.0,0.08891]
[1641690972972,1.12174559,41737.0,41736.0,0.06091]
[1641690973172,1.12174559,41737.0,41736.0,0.05963876]
[1641690975299,1.13274559,41737.0,41736.0,0.05963876]
[1641690976302,1.12174559,41737.0,41736.0,0.05963876]
[1641690976702,0.8,41736.0,41731.0,0.00039259]
[1641690976902,0.1198577,41734.0,41731.0,0.00039259]
[1641690977101,0.32264419,41733.0,41731.0,0.00039259]
[1641690977507,0.39764419,41733.0,41731.0,0.00039262]
[1641690978508,0.29764419,41733.0,41731.0,0.00039262]
[1641690978754,0.059929,41733.0,41731.0,0.00039263]
[1641690979153,0.102929,41733.0,41731.0,0.00039263]
[1641690980255,0.059929,41733.0,41731.0,0.00039263]
[1641690981054,0.075929,41733.0,41731.0,0.00039263]
[1641690981855,0.075929,41733.0,41731.0,0.00078526]
[1641690982255,2.84091249,41732.0,41731.0,0.00078526]
[1641690982499,2.84091249,41732.0,41731.0,0.00039263]
[1641690983102,2.85491249,41732.0,41731.0,0.00039263]
[1641690984203,2.85491249,41732.0,41731.0,0.00079245]
[1641690984404,2.84091249,41732.0,41731.0,0.00079245]
[1641690984604,2.94091249,41732.0,41731.0,0.00079245]
[1641690984805,2.94091249,41732.0,41731.0,0.00039982]
[1641690985208,2.95591249,41732.0,41731.0,0.00039982]
[1641690985408,2.95591249,41732.0,41731.0,0.00039074]
[1641690986255,2.94091249,41732.0,41731.0,0.00039074]
[1641690986455,2.94091249,41732.0,41731.0,0.00039272]
[1641690988759,2.84091249,41732.0,41731.0,0.00039272]
[1641690990126,2.94091249,41732.0,41731.0,0.00039272]
[1641690990726,2.94091249,41732.0,41731.0,0.00039263]
[1641690993329,2.97772281,41732.0,41731.0,0.00039263]
[1641690995153,2.97772281,41732.0,41731.0,0.00039264]
[1641690997255,2.97772281,41732.0,41731.0,0.00078528]
[1641690997495,2.97772281,41732.0,41731.0,0.00039264]
[1641690998096,2.97272281,41732.0,41731.0,0.00039264]
[1641690998298,2.97272281,41732.0,41731.0,0.00078528]
[1641690998496,2.97272281,41732.0,41731.0,0.00039264]
[1641691000601,2.46404263,41732.0,41731.0,0.00039264]
[1641691002051,2.36404263,41732.0,41731.0,0.00039264]
[1641691002452,2.46404263,41732.0,41731.0,0.00039264]
[1641691003456,2.36404263,41732.0,41731.0,0.00039264]
[1641691003853,2.46404263,41732.0,41731.0,0.00039264]
[1641691004152,2.36192195,41732.0,41731.0,0.00039264]
[1641691004653,2.46192195,41732.0,41731.0,0.00039264]
[1641691006126,0.1,41732.0,41731.0,0.00039264]
[1641691006324,0.059929,41733.0,41731.0,0.00039264]
[1641691006926,0.024,41732.0,41730.0,0.13642087]
[1641691007525,0.29416288,41731.0,41730.0,0.0793822]
[1641691008025,0.29416288,41731.0,41730.0,0.19921531]
[1641691009071,0.29416288,41731.0,41730.0,0.0204582]
[1641691009874,0.31816288,41731.0,41730.0,0.0204582]
[1641691010375,0.31816288,41731.0,41730.0,0.0194582]
[1641691012697,0.36596288,41731.0,41730.0,0.0194582]
[1641691014797,0.36596288,41731.0,41730.0,0.0144582]
[1641691017258,0.0718,41731.0,41730.0,0.0144582]
[1641691017861,0.059919,41732.0,41730.0,0.0144582]
[1641691017862,0.059919,41732.0,41731.0,0.37979872]
[1641691023114,0.709919,41732.0,41731.0,0.37479872]
[1641691023312,0.059919,41732.0,41731.0,0.37479872]
[1641691023752,0.459919,41732.0,41731.0,0.37479872]
[1641691024155,0.559919,41732.0,41731.0,0.37479872]
[1641691024355,0.059919,41732.0,41731.0,0.37479872]
[1641691027901,0.107719,41732.0,41731.0,0.37479872]
[1641691028703,0.357719,41732.0,41731.0,0.37479872]
[1641691028901,0.107719,41732.0,41731.0,0.37479872]
[1641691029103,0.207719,41732.0,41731.0,0.37479872]
[1641691030102,0.107719,41732.0,41731.0,0.37479872]
[1641691031004,0.657719,41732.0,41731.0,0.36979872]
[1641691031261,0.107719,41732.0,41731.0,0.36979872]
[1641691031459,0.207719,41732.0,41731.0,0.36979872]
[1641691032457,0.107719,41732.0,41731.0,0.36979872]
[1641691036707,0.32968906,41732.0,41731.0,0.36979872]
[1641691037009,0.207719,41732.0,41731.0,0.36979872]
[1641691037207,0.27334421,41732.0,41731.0,0.36979872]
[1641691038210,0.17334421,41732.0,41731.0,0.36979872]
[1641691040059,0.17334421,41732.0,41731.0,0.36479872]
[1641691047267,0.90319557,41724.0,41723.0,0.00032]
[1641691047559,1.3488103,41724.0,41723.0,0.00032]
[1641691047760,1.3988103,41724.0,41723.0,0.00032]
[1641691047959,1.83860568,41724.0,41723.0,0.00032]
[1641691048359,0.7,41723.0,41720.0,0.007926]
[1641691048562,0.107745,41722.0,41720.0,0.007926]
[1641691048860,0.157745,41722.0,41720.0,0.007926]
[1641691049061,0.207745,41722.0,41720.0,0.007926]
[1641691049261,0.217745,41722.0,41720.0,0.007926]
[1641691049862,0.99898402,41721.0,41720.0,0.007926]
[1641691050115,1.14678402,41721.0,41720.0,0.007926]
[1641691050310,1.14678402,41721.0,41720.0,0.002926]
[1641691050511,1.14678402,41721.0,41720.0,0.00331861]
[1641691050710,0.8978,41721.0,41720.0,0.00331861]
[1641691051111,0.1478,41721.0,41720.0,0.00331861]
[1641691051312,0.0568,41721.0,41720.0,0.00331861]
[1641691051711,0.0568,41721.0,41720.0,0.00331862]
[1641691052512,0.0478,41721.0,41720.0,0.00331862]
[1641691053312,0.2988,41721.0,41720.0,0.00331862]
[1641691053759,0.2988,41721.0,41720.0,0.00371124]
[1641691053959,0.2988,41721.0,41720.0,0.00331862]
[1641691054559,0.2878,41721.0,41720.0,0.00331862]
[1641691054960,0.2878,41721.0,41720.0,0.00370339]
[1641691055164,0.2968,41721.0,41720.0,0.00331077]
[1641691056264,0.2968,41721.0,41720.0,0.00331111]
[1641691056563,0.2878,41721.0,41720.0,0.00331111]
[1641691057506,0.2988,41721.0,41720.0,0.00331111]